bitfinex/quotes_ETHUSD_20250914
["timestamp","ask_amount","ask_price","bid_price","bid_amount"]
[1757870871470,0.3073,4623.0,4622.9,2.27114434]
[1757870871685,0.3073,4623.0,4622.9,0.108]
[1757870871686,1.2412,4623.0,4622.9,0.108]
[1757870872574,1.2412,4623.0,4622.5,0.108]
[1757870872794,0.9339,4622.9,4622.5,0.108]
[1757870873188,0.3053,4622.6,4622.5,0.108]
[1757870873902,0.4615,4622.8,4622.5,2.27133153]
[1757870874085,0.3053,4622.6,4622.5,0.108]
[1757870874784,0.002,4623.0,4622.5,0.108]
[1757870874985,0.002,4623.0,4622.6,0.02163284]
[1757870875180,0.002,4623.0,4622.8,0.108]
[1757870875385,0.002,4623.0,4622.9,0.02163144]
[1757870875908,0.002,4623.0,4622.2,1.06931114]
[1757870875909,1.2378,4623.0,4622.2,0.57101114]
[1757870876210,1.2378,4623.0,4622.0,2.16354896]
[1757870876211,1.2378,4623.0,4622.4,2.16337136]
[1757870876412,1.2378,4623.0,4622.5,0.02163331]
[1757870876600,0.499,4622.9,4622.5,0.02163331]
[1757870877494,0.2969,4622.6,4622.5,0.02163331]
[1757870877698,0.2969,4622.6,4622.4,0.02163378]
[1757870878114,0.7959,4622.6,4622.4,0.02163378]
[1757870878556,0.499,4622.5,4622.4,0.02163378]
[1757870878833,0.499,4622.5,4622.3,0.108]
[1757870879021,0.12115271,4622.7,4622.3,0.108]
[1757870879216,0.499,4622.7,4622.5,0.001]
[1757870879518,0.4593,4622.6,4622.5,0.001]
[1757870879720,1.2312,4622.6,4622.5,0.001]
[1757870879925,1.75430863,4622.6,4622.5,0.001]
[1757870880330,3.91759336,4622.6,4622.5,0.001]
[1757870880906,6.91759336,4622.6,4622.5,0.001]
[1757870881125,7.24061147,4622.6,4622.5,0.001]
[1757870881326,11.03561147,4622.6,4622.5,0.001]
[1757870884524,7.24061147,4622.6,4622.5,0.001]
[1757870884857,11.03261147,4622.6,4622.5,0.001]
[1757870885921,11.82461147,4622.6,4622.5,0.001]
[1757870887652,11.82432312,4622.6,4622.5,0.001]
[1757870890467,8.03232312,4622.6,4622.5,0.001]
[1757870890765,10.10262312,4622.6,4622.5,0.001]
[1757870891182,10.56192312,4622.6,4622.5,0.001]
[1757870891335,6.77992312,4622.6,4622.5,0.001]
[1757870891541,10.56192312,4622.6,4622.5,0.001]
[1757870891775,6.77992312,4622.6,4622.5,0.001]
[1757870892069,3.90184344,4622.6,4622.5,0.3085]
[1757870892430,3.90184344,4622.6,4622.5,0.001]
[1757870892431,6.90169141,4622.6,4622.5,0.001]
[1757870892738,6.781,4622.6,4622.5,0.001]
[1757870892946,8.94428473,4622.6,4622.5,0.001]
[1757870893179,4.11074455,4622.6,4622.5,0.3085]
[1757870893383,0.002,4623.0,4622.5,1.2248]
[1757870893596,3.779,4622.9,4622.6,0.4568]
[1757870893903,3.779,4622.9,4622.5,0.768]
[1757870893904,0.002,4623.0,4622.8,0.3075]
[1757870894044,3.778,4622.9,4622.8,0.3075]
[1757870894240,3.778,4622.9,4622.8,1.2238]
[1757870894494,0.002,4623.0,4622.9,2.16314434]
[1757870894641,0.002,4623.0,4622.9,3.07944434]
[1757870894842,0.002,4623.0,4622.9,3.40857578]
[1757870895540,0.002,4623.0,4622.9,1.2238]
[1757870895784,0.002,4623.0,4622.9,0.3075]
[1757870896477,0.002,4623.0,4622.5,0.4605]
[1757870896686,3.884,4622.9,4622.5,2.62382775]
[1757870896983,3.884,4622.9,4622.6,0.4595]
[1757870897356,3.884,4622.9,4622.5,0.001]
[1757870897892,3.884,4622.9,4622.5,2.16432262]
[1757870898185,3.884,4622.9,4622.5,0.4605]
[1757870898881,3.884,4622.9,4622.5,0.001]
[1757870899386,3.884,4622.9,4622.5,2.16433131]
[1757870899673,3.884,4622.9,4622.6,0.4595]
[1757870900764,3.884,4622.9,4622.5,0.001]
[1757870901085,3.884,4622.9,4622.8,0.3075]
[1757870901444,6.81794542,4622.9,4622.5,0.001]
[1757870901679,4.6548,4622.9,4622.5,0.001]
[1757870901853,3.08293025,4622.8,4622.5,0.001]
[1757870902176,2.16324187,4622.7,4622.5,0.001]
[1757870902363,3.767,4622.6,4622.5,0.001]
[1757870902568,1.663,4623.0,4622.6,0.767]
[1757870902769,0.108,4622.8,4622.7,0.9163]
[1757870902947,3.875,4622.8,4622.7,0.4595]
[1757870903142,3.875,4622.8,4622.7,0.767]
[1757870904083,0.108,4622.8,4622.7,2.93023793]
[1757870904281,0.108,4622.8,4622.7,3.38703793]
[1757870904282,3.876,4622.8,4622.7,3.38703793]
[1757870904575,3.766,4622.8,4622.7,3.38703793]
[1757870904782,0.002,4623.0,4622.9,2.16314434]
[1757870904960,0.002,4623.0,4622.9,3.38694434]
[1757870906184,0.002,4623.0,4622.9,0.767]
[1757870906750,0.002,4623.0,4622.6,0.108]
[1757870907070,0.11,4623.0,4622.5,2.16429136]
[1757870907282,0.11,4623.0,4622.5,0.001]
[1757870907460,0.4593,4622.9,4622.5,0.001]
[1757870907672,0.3115,4622.6,4622.5,0.001]
[1757870907881,4.0745,4622.6,4622.5,0.001]
[1757870909204,6.23778473,4622.6,4622.5,0.001]
[1757870909498,4.0745,4622.6,4622.5,0.001]
[1757870910051,6.35892359,4622.6,4622.5,0.001]
[1757870910363,5.20276739,4622.6,4622.5,0.001]
[1757870910984,5.40466648,4622.6,4622.5,0.001]
[1757870911184,5.40467796,4622.6,4622.5,0.001]
[1757870911400,8.45126269,4622.6,4622.5,0.001]
[1757870911917,8.45126901,4622.6,4622.5,0.001]
[1757870917384,8.45126901,4622.6,4622.5,0.3103]
[1757870917385,1.33018428,4622.6,4622.5,0.3103]
[1757870917584,3.749,4622.6,4622.5,0.3103]
[1757870918284,4.07205575,4622.6,4622.5,0.3103]
[1757870918484,6.23534048,4622.6,4622.5,0.3103]
[1757870918706,6.23534048,4622.6,4622.5,0.001]
[1757870920207,2.48634048,4622.6,4622.5,0.001]
[1757870920388,3.746,4622.6,4622.5,0.3103]
[1757870920590,6.23234048,4622.6,4622.5,0.3103]
[1757870920994,4.06905575,4622.6,4622.5,0.3103]
[1757870921187,6.53284048,4622.6,4622.5,0.001]
[1757870921507,7.80572453,4622.6,4622.5,0.001]
[1757870921711,9.02752453,4622.6,4622.5,0.001]
[1757870923988,12.02752453,4622.6,4622.5,0.001]
[1757870926211,11.14422453,4622.6,4622.5,0.001]
[1757870926796,11.59772453,4622.6,4622.5,0.001]
[1757870927192,12.02752453,4622.6,4622.5,0.001]
[1757870930069,2.16398692,4621.1,4621.0,0.4744]
[1757870930223,2.1640342,4621.0,4620.8,0.08]
[1757870930403,3.734,4620.9,4620.8,0.08]
[1757870930804,3.734,4620.9,4620.8,0.3893]
[1757870931330,3.734,4620.9,4620.8,1.3165]
[1757870931896,3.734,4620.9,4620.8,0.3893]
[1757870932096,5.89808059,4620.9,4620.8,0.3893]
[1757870932424,6.87038375,4620.9,4620.8,0.08]
[1757870932598,7.19370188,4620.9,4620.8,0.3893]
[1757870933927,5.02962129,4620.9,4620.8,0.3893]
[1757870934439,5.02962129,4620.9,4620.8,0.8262]
[1757870934643,4.05731813,4620.9,4620.8,0.8262]
[1757870934839,3.734,4620.9,4620.8,0.8262]
[1757870935929,4.05731813,4620.9,4620.8,0.8262]
[1757870936628,3.734,4620.9,4620.8,0.8262]
[1757870937761,4.05731813,4620.9,4620.8,0.8262]
[1757870938158,6.22139872,4620.9,4620.8,0.3893]
[1757870938669,4.05731813,4620.9,4620.8,0.8262]
[1757870939434,4.05731813,4620.9,4620.8,0.3893]
[1757870939665,4.05731813,4620.9,4620.8,0.8585]
[1757870939858,3.734,4620.9,4620.8,0.8585]
[1757870940089,3.734,4620.9,4620.8,1.352]
[1757870940289,3.722,4620.9,4620.8,1.352]
[1757870940458,3.722,4620.9,4620.8,0.8585]
[1757870940668,3.722,4620.9,4620.8,0.3893]
[1757870940996,7.44961235,4620.9,4620.8,0.08]
[1757870941316,7.77293048,4620.9,4620.8,0.08]
[1757870942986,4.04331813,4620.9,4620.8,1.3435]
[1757870943183,3.72,4620.9,4620.8,1.3435]
[1757870944485,0.32331813,4621.0,4620.8,1.3435]
[1757870944692,3.72,4620.9,4620.8,0.8743]
[1757870945266,3.72,4620.9,4620.8,1.3435]
[1757870946682,3.824,4620.9,4620.8,1.3435]
[1757870950288,0.108,4620.9,4620.8,1.3435]
[1757870950475,3.823,4620.9,4620.8,1.3435]
[1757870951366,0.108,4620.9,4620.8,1.3435]
[1757870951560,3.821,4620.9,4620.8,1.3435]
[1757870951968,0.108,4620.9,4620.8,1.3435]
[1757870952168,3.819,4620.9,4620.8,1.3435]
[1757870952695,3.819,4620.9,4620.8,0.08]
[1757870952900,7.3399124,4620.9,4620.8,0.08]
[1757870953083,7.66323053,4620.9,4620.8,0.08]
[1757870953285,7.17873053,4620.9,4620.8,0.08]
[1757870953487,7.17873053,4620.9,4620.8,0.081]
[1757870953794,7.66323053,4620.9,4620.8,0.081]
[1757870954194,7.17873053,4620.9,4620.8,0.081]
[1757870954966,7.66323053,4620.9,4620.8,0.081]
[1757870955168,8.09493053,4620.9,4620.8,0.081]
[1757870955369,12.45894167,4620.9,4620.8,0.081]
[1757870959913,12.35094167,4620.9,4620.8,1e-08]
[1757870960110,5.95622109,4620.6,4620.5,0.001]
[1757870960322,9.98453922,4620.6,4620.5,0.001]
[1757870960625,11.19273922,4620.6,4620.5,0.001]
[1757870960789,11.84268425,4620.6,4620.5,0.001]
[1757870963420,11.41198425,4620.6,4620.5,0.001]
[1757870963600,12.98939023,4620.6,4620.5,0.001]
[1757870964509,12.98839023,4620.6,4620.5,0.001]
[1757870966615,13.09623247,4620.6,4620.5,0.001]
[1757870967991,8.90673247,4620.6,4620.5,0.001]
[1757870968191,12.60973247,4620.6,4620.5,0.001]
[1757870968612,13.09423247,4620.6,4620.5,0.001]
[1757870968821,13.52593247,4620.6,4620.5,0.001]
[1757870968993,13.52393247,4620.6,4620.5,0.001]
[1757870972232,13.09223247,4620.6,4620.5,0.001]
[1757870974720,13.54113247,4620.6,4620.5,0.001]
[1757870978960,13.09223247,4620.6,4620.5,0.001]
[1757870979153,13.54113247,4620.6,4620.5,0.001]
[1757870979522,13.09223247,4620.6,4620.5,0.001]
[1757870981645,13.54113247,4620.6,4620.5,0.001]
[1757870982248,2.16445531,4620.1,4620.0,0.001]
[1757870982449,7.83777344,4620.1,4620.0,0.001]
[1757870982647,7.83777344,4620.1,4620.0,0.7565]
[1757870982926,8.33357344,4620.1,4620.0,0.7565]
[1757870985862,8.28357344,4620.1,4620.0,0.7565]
[1757870987166,8.16232914,4620.1,4620.0,0.7565]
[1757870987368,8.28395074,4620.1,4620.0,0.7565]
[1757870988648,4.59595074,4620.1,4620.0,0.8092]
[1757870988848,8.27895074,4620.1,4620.0,1.2513]
[1757870990483,9.41356229,4620.1,4620.0,1.2513]
[1757870991552,9.41556229,4620.1,4620.0,1.2513]
[1757870991953,9.41556229,4620.1,4620.0,0.7561]
[1757870992147,9.41556229,4620.1,4620.0,0.314]
[1757870992482,9.41556229,4620.1,4620.0,0.001]
[1757870992983,10.21016229,4620.1,4620.0,0.001]
[1757870993880,10.21098815,4620.1,4620.0,0.001]
[1757870995674,9.71258815,4620.1,4620.0,0.001]
[1757870997163,2.16468958,4619.6,4619.5,0.4431]
[1757870997380,6.16421087,4619.6,4619.5,0.4431]
[1757870997580,6.16421087,4619.6,4619.5,1.2315]
[1757871000883,6.16421087,4619.6,4619.5,1.2642]
[1757871001789,6.16121087,4619.6,4619.5,1.2642]
[1757871002486,3.99652129,4619.6,4619.5,1.2642]
[1757871002686,0.32452129,4619.6,4619.5,1.2642]
[1757871003094,3.99552129,4619.6,4619.5,1.2642]
[1757871003588,0.32452129,4619.6,4619.5,1.2642]
[1757871003789,3.99552129,4619.6,4619.5,1.2642]
[1757871004359,6.16021087,4619.6,4619.5,1.2642]
[1757871004689,3.99552129,4619.6,4619.5,0.2942]
[1757871004891,3.99552129,4619.6,4619.5,1.223]
[1757871005092,6.16021087,4619.6,4619.5,1.223]
[1757871005289,6.16021087,4619.6,4619.5,0.2942]
[1757871005492,6.77623196,4619.6,4619.5,0.2942]
[1757871005792,8.43823196,4619.6,4619.5,0.2942]
[1757871006003,6.27354238,4619.6,4619.5,0.2942]
[1757871006294,8.43823196,4619.6,4619.5,0.2942]
[1757871006994,8.4383487,4619.6,4619.5,0.2942]
[1757871007192,8.7363487,4619.6,4619.5,0.001]
[1757871007759,8.4383487,4619.6,4619.5,0.001]
[1757871009093,12.1924487,4619.6,4619.5,0.001]
[1757871009297,12.6426487,4619.6,4619.5,0.001]
[1757871009474,13.1184487,4619.6,4619.5,0.001]
[1757871009793,13.1184487,4619.6,4619.5,0.2953]
[1757871009794,8.2431487,4619.6,4619.5,0.2953]
[1757871010096,8.2431487,4619.6,4619.5,1.2241]
[1757871010097,11.4383487,4619.6,4619.5,1.2241]
[1757871010968,11.4383487,4619.6,4619.5,0.001]
[1757871011278,11.7363487,4619.6,4619.5,0.001]
[1757871011872,12.1924487,4619.6,4619.5,0.001]
[1757871012074,12.6426487,4619.6,4619.5,0.001]
[1757871012477,12.1924487,4619.6,4619.5,0.001]
[1757871013009,12.6426487,4619.6,4619.5,0.001]
[1757871013387,12.6426487,4619.6,4619.0,0.001]
[1757871013388,2.1649239,4619.1,4619.0,0.001]
[1757871013712,9.37705432,4619.1,4619.0,0.001]
[1757871013919,9.67505432,4619.1,4619.0,0.001]
[1757871014085,10.21782811,4619.1,4619.0,0.001]
[1757871016313,10.21747395,4619.1,4619.0,0.001]
[1757871018212,10.32881527,4619.1,4619.0,0.001]
[1757871019609,10.77901527,4619.1,4619.0,0.001]
[1757871020750,11.57101527,4619.1,4619.0,0.001]
[1757871021641,2.16515827,4618.6,4618.5,0.001]
[1757871021838,10.82244214,4618.6,4618.5,0.001]
[1757871022041,12.02674214,4618.6,4618.5,0.001]
[1757871022443,11.20713247,4618.6,4618.5,0.001]
[1757871022608,10.90913247,4618.6,4618.5,0.001]
[1757871022937,12.59375453,4618.6,4618.5,0.001]
[1757871023249,12.29575453,4618.6,4618.5,0.001]
[1757871023750,12.59375453,4618.6,4618.5,0.001]
[1757871023910,13.04985453,4618.6,4618.5,0.001]
[1757871024251,13.50005453,4618.6,4618.5,0.001]
[1757871026615,13.04985453,4618.6,4618.5,0.001]
[1757871027445,8.62475453,4618.6,4618.5,0.2953]
[1757871027742,12.29575453,4618.6,4618.5,1.2241]
[1757871028151,9.29575453,4618.6,4618.5,1.2241]
[1757871028352,7.90913247,4618.6,4618.5,1.2241]
[1757871028578,10.90913247,4618.6,4618.5,1.2241]
[1757871028774,10.90913247,4618.6,4618.5,0.2953]
[1757871031282,10.90913247,4618.6,4618.5,0.7396]
[1757871031451,10.90861487,4618.6,4618.5,0.7396]
[1757871031850,11.66324383,4618.6,4618.5,0.001]
[1757871032055,2.16539269,4618.1,4618.0,0.3973]
[1757871032285,3.671,4618.1,4618.0,0.3973]
[1757871032470,3.99476627,4618.1,4618.0,1.1531]
[1757871032674,3.671,4618.1,4618.0,1.1531]
[1757871033188,3.99476627,4618.1,4618.0,1.1531]
[1757871033395,3.671,4618.1,4618.0,1.1531]
[1757871034123,3.99448104,4618.1,4618.0,1.1531]
[1757871034259,3.671,4618.1,4618.0,1.1531]
[1757871034658,5.83639269,4618.1,4618.0,1.1531]
[1757871034986,3.99448104,4618.1,4618.0,1.1531]
[1757871035186,3.671,4618.1,4618.0,1.1531]
[1757871035792,5.83639269,4618.1,4618.0,0.291]
[1757871036000,2.16543958,4618.0,4617.9,0.001]
[1757871036201,2.48892062,4618.0,4617.9,0.001]
[1757871036612,5.48892062,4618.0,4617.9,0.001]
[1757871036806,5.77462062,4618.0,4617.9,0.001]
[1757871037008,5.48892062,4618.0,4617.9,0.001]
[1757871037207,6.70772086,4618.0,4617.9,0.001]
[1757871038324,6.99342086,4618.0,4617.9,0.001]
[1757871040000,7.48472086,4618.0,4617.9,0.001]
[1757871040201,7.92812086,4618.0,4617.9,0.001]
[1757871040733,7.48472086,4618.0,4617.9,0.001]
[1757871041635,7.92812086,4618.0,4617.9,0.001]
[1757871042204,7.48472086,4618.0,4617.9,0.001]
[1757871042427,8.01482246,4618.0,4617.9,0.001]
[1757871042634,8.12358634,4618.0,4617.9,0.001]
[1757871042921,7.68018634,4618.0,4617.9,0.001]
[1757871043126,7.18888634,4618.0,4617.9,0.001]
[1757871043343,6.90318634,4618.0,4617.9,0.001]
[1757871043862,7.18888634,4618.0,4617.9,0.001]
[1757871045076,8.91558634,4618.0,4617.9,0.001]
[1757871045433,2.16553337,4617.8,4617.5,0.001]
[1757871045633,6.56003947,4617.7,4617.5,0.001]
[1757871045830,9.50261973,4617.7,4617.5,0.001]
[1757871046034,9.58932735,4617.7,4617.5,0.001]
[1757871046824,9.09802735,4617.7,4617.5,0.001]
[1757871048127,9.09822513,4617.7,4617.5,0.001]
[1757871051046,9.09722513,4617.7,4617.5,0.001]
[1757871052332,9.55672513,4617.7,4617.5,0.001]
[1757871052746,10.02772513,4617.7,4617.5,0.001]
[1757871053637,13.02772513,4617.7,4617.5,0.001]
[1757871055734,12.09722513,4617.7,4617.5,0.001]
[1757871059986,11.81152513,4617.7,4617.5,0.001]
[1757871060378,12.12542513,4617.7,4617.5,0.001]
[1757871061459,12.59732513,4617.7,4617.5,0.001]
[1757871061648,13.06762513,4617.7,4617.5,0.001]
[1757871062051,13.89532513,4617.7,4617.5,0.001]
[1757871062251,12.59732513,4617.7,4617.5,0.001]
[1757871062450,12.5972831,4617.7,4617.5,0.001]
[1757871065169,12.39493286,4617.7,4617.5,0.001]
[1757871065371,12.5975405,4617.7,4617.5,0.001]
[1757871065682,12.1256405,4617.7,4617.5,0.001]
[1757871066250,12.59770159,4617.7,4617.5,0.001]
[1757871066448,5.95762716,4617.6,4617.5,0.001]
[1757871066652,0.792,4617.4,4617.1,0.001]
[1757871066854,6.27171477,4617.2,4617.1,0.001]
[1757871067052,6.59596047,4617.2,4617.1,0.001]
[1757871067354,8.85558908,4617.2,4617.1,0.001]
[1757871067556,10.47648908,4617.2,4617.1,0.3117]
[1757871067755,10.56320779,4617.2,4617.1,0.3117]
[1757871068289,10.56320779,4617.2,4617.1,0.001]
[1757871068457,10.87710779,4617.2,4617.1,0.001]
[1757871069500,11.34900779,4617.2,4617.1,0.001]
[1757871069692,11.81930779,4617.2,4617.1,0.001]
[1757871071005,11.34900779,4617.2,4617.1,0.001]
[1757871071192,10.87710779,4617.2,4617.1,0.001]
[1757871072806,10.56320779,4617.2,4617.1,0.001]
[1757871073510,10.87710779,4617.2,4617.1,0.001]
[1757871075298,11.81930779,4617.2,4617.1,0.001]
[1757871075612,11.81930779,4617.2,4616.8,0.08]
[1757871075613,2.95795551,4616.9,4616.8,1e-08]
[1757871075915,11.22596937,4616.9,4616.8,1e-08]
[1757871076110,11.53986937,4616.9,4616.8,1e-08]
[1757871076410,12.91366937,4616.9,4616.8,1e-08]
[1757871076614,11.97146937,4616.9,4616.8,1e-08]
[1757871076816,7.98856937,4616.9,4616.8,1e-08]
[1757871077021,10.86456937,4616.9,4616.8,1.22710001]
[1757871077496,10.74297723,4616.9,4616.8,1.22710001]
[1757871077820,10.86456161,4616.9,4616.8,1.22710001]
[1757871078712,10.86456161,4616.9,4616.8,0.74230001]
[1757871081201,10.86456161,4616.9,4616.8,0.31070001]
[1757871081927,10.86456161,4616.9,4616.8,1.22710001]
[1757871083093,10.86456161,4616.9,4616.8,1.22810001]
[1757871083392,10.86656161,4616.9,4616.8,1.22810001]
[1757871084142,10.86656161,4616.9,4616.8,0.74330001]
[1757871085224,10.86658524,4616.9,4616.8,0.31170001]
[1757871085427,10.86658524,4616.9,4616.8,0.00100001]
[1757871085822,11.18048524,4616.9,4616.8,0.00100001]
[1757871087560,12.84348524,4616.9,4616.8,0.00100001]
[1757871087856,12.52958524,4616.9,4616.8,0.00100001]
[1757871088085,12.52958524,4616.9,4616.8,0.31170001]
[1757871089469,12.52958524,4616.9,4616.8,0.75770001]
[1757871091074,12.52958524,4616.9,4616.8,1.22110001]
[1757871091075,5.42086157,4616.9,4616.8,1.22110001]
[1757871091233,10.82221708,4616.9,4616.8,1.22110001]
[1757871096567,10.8224471,4616.9,4616.8,1.22110001]
[1757871100389,10.82241476,4616.9,4616.8,1.22110001]
[1757871103969,1.98945925,4616.9,4616.8,1.22110001]
[1757871104171,5.33,4616.9,4616.8,1.34331001]
[1757871104489,5.65445925,4616.9,4616.8,1.22110001]
[1757871104857,5.65445925,4616.9,4616.8,3.38710243]
[1757871105794,5.65445925,4616.9,4616.8,3.58884094]
[1757871106365,5.53287487,4616.9,4616.8,3.38710243]
[1757871106567,1.86787487,4616.9,4616.8,3.94252154]
[1757871106768,5.33,4616.9,4616.8,3.94252154]
[1757871107073,5.53287487,4616.9,4616.8,3.94252154]
[1757871107591,0.20487487,4616.9,4616.8,3.94252154]
[1757871107791,3.774,4616.9,4616.8,4.14414856]
[1757871108506,0.11,4616.9,4616.8,4.14414856]
[1757871110800,0.002,4616.9,4616.8,4.14414856]
[1757871113370,0.002,4616.9,4616.8,3.94252154]
[1757871117413,0.002,4616.9,4616.8,3.96418156]
[1757871117711,0.002,4616.9,4616.8,3.94252154]
[1757871117930,0.002,4616.9,4616.8,8.62054975]
[1757871118083,0.002,4616.9,4616.8,8.59888973]
[1757871118410,0.002,4616.9,4616.8,9.24895306]
[1757871119277,0.002,4616.9,4616.8,10.91195306]
[1757871119484,0.002,4616.9,4616.8,13.91195306]
[1757871120310,0.002,4616.9,4616.8,10.24895306]
[1757871120526,0.002,4616.9,4616.8,13.91095306]
[1757871125712,0.002,4616.9,4616.8,13.9105036]
[1757871127984,0.002,4616.9,4616.8,14.0185036]
[1757871129513,0.002,4616.9,4616.8,14.01850871]
[1757871130310,0.002,4616.9,4616.8,5.34440871]
[1757871130514,0.7842,4616.9,4616.8,6.02792627]
[1757871130824,0.7842,4616.9,4616.8,2.36792627]
[1757871130825,1.2555,4616.9,4616.8,2.36792627]
[1757871134098,0.002,4616.9,4616.8,2.36792627]
[1757871134391,0.002,4616.9,4616.8,3.56922627]
[1757871134623,0.002,4616.9,4616.8,4.5110242]
[1757871134824,0.002,4616.9,4616.8,8.1710242]
[1757871135396,0.002,4616.9,4616.8,11.1710242]
[1757871136015,0.002,4616.9,4616.8,11.9630242]
[1757871136926,0.002,4616.9,4616.8,12.04969799]
[1757871137939,1e-08,4617.4,4617.2,0.792]
[1757871138139,1e-08,4617.4,4617.3,4.97036547]
[1757871138332,1e-08,4617.4,4617.3,5.2588078]
[1757871138636,1e-08,4617.4,4617.3,8.31477567]
[1757871138806,1e-08,4617.4,4617.3,7.42457567]
[1757871139007,1e-08,4617.4,4617.3,7.85767567]
[1757871139534,1e-08,4617.4,4617.3,8.50765026]
[1757871139737,1e-08,4617.4,4617.3,3.62355026]
[1757871140045,1e-08,4617.4,4617.3,6.63257567]
[1757871140412,1e-08,4617.4,4617.3,6.74057567]
[1757871140704,1e-08,4617.4,4617.3,2.77047567]
[1757871140911,0.30810001,4617.4,4617.3,6.42947567]
[1757871141851,0.30810001,4617.4,4617.3,2.77047567]
[1757871142008,0.78220001,4617.4,4617.3,6.42947567]
[1757871142208,1.25350001,4617.4,4617.3,6.42947567]
[1757871142408,0.30810001,4617.4,4617.3,6.42947567]
[1757871145022,0.30810001,4617.4,4617.3,2.77047567]
[1757871145223,0.30810001,4617.4,4617.3,6.42947567]
[1757871145445,0.30810001,4617.4,4617.3,6.42847567]
[1757871145645,0.78220001,4617.4,4617.3,6.42847567]
[1757871146024,0.30810001,4617.4,4617.3,6.42847567]
[1757871146519,0.30810001,4617.4,4617.3,2.77047567]
[1757871146750,1.25350001,4617.4,4617.3,2.36669171]
[1757871147855,1.25350001,4617.4,4617.3,0.20092384]
[1757871148425,1.25350001,4617.4,4617.3,2.36669171]
[1757871149521,0.78220001,4617.4,4617.3,2.36669171]
[1757871149857,1e-08,4617.4,4617.3,2.69474938]
[1757871150157,1e-08,4617.4,4617.3,3.65841]
[1757871150749,1e-08,4617.4,4617.3,3.76641]
[1757871150925,1e-08,4617.4,4617.3,3.74475233]
[1757871151126,1e-08,4617.4,4617.3,3.76641]
[1757871153641,1e-08,4617.4,4617.3,3.29961]
[1757871153964,1e-08,4617.4,4617.3,4.23861]
[1757871154330,1e-08,4617.4,4617.3,5.03061]
[1757871154531,1e-08,4617.4,4617.3,8.00895233]
[1757871154873,1e-08,4617.4,4617.3,9.27333494]
[1757871155171,1e-08,4617.4,4617.3,8.11895233]
[1757871155529,1e-08,4617.4,4617.3,11.77595233]
[1757871155728,1e-08,4617.4,4617.3,8.11895233]
[1757871156231,1e-08,4617.4,4617.3,11.77595233]
[1757871157632,1e-08,4617.4,4617.3,8.11895233]
[1757871157940,1e-08,4617.4,4617.3,11.77595233]
[1757871159262,1e-08,4617.4,4617.3,12.93033494]
[1757871160173,1e-08,4617.4,4617.3,11.77595233]
[1757871161987,1e-08,4617.4,4617.3,11.77495233]
[1757871162764,1e-08,4617.4,4617.3,7.17995233]
[1757871163090,1e-08,4617.4,4617.3,10.83595233]
[1757871163667,0.29770001,4617.4,4617.3,6.08155233]
[1757871163994,0.29770001,4617.4,4617.3,9.73755233]
[1757871164898,0.29770001,4617.4,4617.3,6.08155233]
[1757871165094,0.79500001,4617.4,4617.3,9.73755233]
[1757871165469,0.79500001,4617.4,4617.3,6.08155233]
[1757871165670,0.29770001,4617.4,4617.3,9.73755233]
[1757871165900,0.29770001,4617.4,4617.3,6.73755233]
[1757871167368,0.29770001,4617.4,4617.3,6.73855233]
[1757871168389,1.26130001,4617.4,4617.3,6.62755233]
[1757871170306,0.79500001,4617.4,4617.3,6.62755233]
[1757871171981,1e-08,4617.4,4617.3,6.93395233]
[1757871172186,1e-08,4617.4,4617.3,6.62755233]
[1757871172396,0.29770001,4617.4,4617.3,6.62755233]
[1757871173306,0.29770001,4617.4,4617.3,2.97255233]
[1757871173513,0.29770001,4617.4,4617.3,6.64921]
[1757871173802,0.29770001,4617.4,4617.3,6.62755233]
[1757871176690,0.29770001,4617.4,4617.3,6.62655233]
[1757871177200,1e-08,4617.4,4617.3,6.62655233]
[1757871177904,0.31250001,4617.4,4617.3,6.62655233]
[1757871178091,0.31250001,4617.4,4617.3,6.12969171]
[1757871178293,0.31250001,4617.4,4617.3,2.47569171]
[1757871178474,0.31250001,4617.4,4617.3,6.15134938]
[1757871178677,0.31250001,4617.4,4617.3,2.47613852]
[1757871178976,1.25590001,4617.4,4617.3,6.02213852]
[1757871179695,1.25700001,4617.4,4617.3,6.02213852]
[1757871179894,0.78810001,4617.4,4617.3,6.02213852]
[1757871181407,0.31250001,4617.4,4617.3,6.02213852]
[1757871181812,1e-08,4617.4,4617.3,8.08373806]
[1757871182110,1e-08,4617.4,4617.3,8.87573806]
[1757871182283,1e-08,4617.4,4617.3,8.98373806]
[1757871182683,1e-08,4617.4,4617.3,9.0704034]
[1757871184937,1e-08,4617.4,4617.3,9.07046264]
[1757871185618,1e-08,4617.4,4617.3,13.11684525]
[1757871185822,1e-08,4617.4,4617.3,12.07046264]
[1757871188704,1e-08,4617.4,4617.3,12.07036079]
[1757871191038,1e-08,4617.4,4617.3,11.96236079]
[1757871191242,1e-08,4617.4,4617.3,12.07036079]
[1757871195620,1e-08,4617.4,4617.3,16.27036079]
[1757871198133,0.002,4618.6,4618.5,2.16520515]
[1757871198448,0.002,4618.6,4618.5,10.0260537]
[1757871198646,1e-08,4618.9,4618.8,5.95706451]
[1757871198813,1e-08,4618.9,4618.8,9.80939255]
[1757871199839,1e-08,4618.9,4618.8,10.55699255]
[1757871200035,1e-08,4618.9,4618.8,11.89774727]
[1757871200348,1e-08,4618.9,4618.8,11.45894727]
[1757871201018,1e-08,4618.9,4618.8,12.38214727]
[1757871201219,1e-08,4618.9,4618.8,11.89774727]
[1757871201853,1e-08,4619.5,4619.4,2.9567833]
[1757871202052,1e-08,4619.5,4619.4,10.32027504]
[1757871202238,0.002,4619.6,4619.5,2.16473644]
[1757871202438,0.002,4619.6,4619.5,3.15806448]
[1757871202751,0.2274,4619.6,4619.5,3.15806448]